bitfinex/quotes_ETHUSD_20250328
["timestamp","ask_amount","ask_price","bid_price","bid_amount"]
[1743166769361,5.29689,1887.9,1887.7,1.6333]
[1743166769725,5.29689,1887.9,1887.1,1.6333]
[1743166769926,5.29804,1887.5,1887.1,6.93235]
[1743166770426,10.59628,1887.5,1887.1,6.93235]
[1743166770627,5.2985,1887.4,1887.1,1.6333]
[1743166771558,5.29919,1887.1,1886.9,1.5675]
[1743166771756,6.01,1887.1,1886.9,1.5675]
[1743166771959,6.01,1887.1,1886.9,4.22850136]
[1743166772152,6.01,1887.1,1886.9,9.52810136]
[1743166773561,6.01,1887.1,1886.9,1.5675]
[1743166773763,6.611,1887.1,1886.9,1.5675]
[1743166773924,6.01,1887.1,1886.9,1.5675]
[1743166774432,11.3092,1887.1,1886.9,1.5675]
[1743166774861,16.6085,1887.1,1886.9,1.5675]
[1743166775365,16.6085,1887.1,1886.7,33.31717]
[1743166775366,5.29941,1887.0,1886.7,28.017]
[1743166775567,11.3092,1887.1,1886.7,34.96915]
[1743166775866,5.29969,1886.9,1886.8,2.66100136]
[1743166776168,5.29969,1886.9,1886.7,29.6689]
[1743166776581,5.29943,1887.0,1886.7,29.6689]
[1743166776881,10.59911,1887.0,1886.7,29.6689]
[1743166777285,5.29943,1887.0,1886.7,29.6689]
[1743166777708,5.2997,1886.9,1886.7,29.6689]
[1743166777985,5.29943,1887.0,1886.7,1.6519]
[1743166778149,7.126371,1887.0,1886.7,1.6519]
[1743166779070,7.67081,1887.1,1886.8,2.66100136]
[1743166779270,5.29944,1887.0,1886.8,2.66100136]
[1743166779459,10.59911,1887.0,1886.8,2.66100136]
[1743166779659,10.59911,1887.0,1886.7,1.6519]
[1743166779856,5.29944,1887.0,1886.7,1.6519]
[1743166780082,6.01,1886.9,1886.7,1.6519]
[1743166780648,6.01,1886.9,1886.8,2.66100136]
[1743166780847,6.01,1886.9,1886.8,7.96097136]
[1743166781085,6.01,1886.9,1886.8,2.66100136]
[1743166784506,6.01,1886.9,1886.7,1.6519]
[1743166784663,7.670903,1886.9,1886.7,1.6519]
[1743166788016,18.270483,1886.9,1886.5,12.62789]
[1743166788172,18.270583,1886.9,1886.5,6.93189]
[1743166788377,12.970633,1886.9,1886.5,9.59289136]
[1743166789075,7.670903,1886.9,1886.7,2.66100136]
[1743166789792,7.670903,1886.9,1886.3,1.6192]
[1743166789793,7.7322603,1886.8,1886.3,1.6192]
[1743166790018,5.30064,1886.6,1886.3,1.6192]
[1743166790568,5.30064,1886.6,1886.2,7.96250136]
[1743166790780,5.99595547,1886.5,1886.2,2.66100136]
[1743166791067,5.99595547,1886.5,1886.2,7.96255136]
[1743166791470,11.29680547,1886.5,1886.2,2.66100136]
[1743166791772,5.3011,1886.4,1886.2,2.66100136]
[1743166793097,7.50375547,1886.3,1886.1,0.05]
[1743166793298,5.99595547,1886.3,1886.1,9.55074136]
[1743166793667,5.99595547,1886.3,1886.2,5.30166]
[1743166793902,5.99595547,1886.3,1886.1,9.55074136]
[1743166794088,5.99595547,1886.3,1886.2,5.30166]
[1743166794291,7.03236571,1886.8,1886.5,6.86854]
[1743166794490,5.99595547,1886.8,1886.7,2.66100136]
[1743166795106,5.99595547,1886.8,1886.5,9.52980136]
[1743166795403,14.00541502,1886.8,1886.3,9.54572136]
[1743166795580,14.00541502,1886.8,1886.4,5.30108]
[1743166795898,5.30026,1886.7,1886.5,2.66100136]
[1743166796103,12.87592547,1886.8,1886.5,2.66100136]
[1743166797002,5.99595547,1886.8,1886.7,2.66100136]
[1743166797195,5.99595547,1886.8,1886.7,4.23610136]
[1743166797389,5.99595547,1886.8,1886.7,9.53635136]
[1743166798205,5.99595547,1886.8,1886.7,4.23610136]
[1743166799303,5.99595547,1886.8,1886.5,14.89841136]
[1743166799502,5.99595547,1886.8,1886.6,5.30053]
[1743166800106,5.99595547,1886.8,1886.6,5.30038]
[1743166800306,5.99595547,1886.8,1886.7,7.96125136]
[1743166801382,5.99595547,1886.8,1886.5,14.89852136]
[1743166801815,5.99595547,1886.8,1886.5,9.59775136]
[1743166802111,5.99595547,1886.8,1886.6,5.30053]
[1743166802318,5.99595547,1886.8,1886.5,9.59775136]
[1743166802527,5.99595547,1886.8,1886.6,5.30043]
[1743166803013,5.99595547,1886.8,1886.5,14.89842136]
[1743166803309,5.99595547,1886.8,1886.6,5.30049]
[1743166803511,5.99595547,1886.8,1886.7,2.66100136]
[1743166803680,7.45195757,1887.4,1887.0,5.29941]
[1743166803681,5.99595547,1887.1,1887.0,5.29941]
[1743166804193,5.99595547,1887.4,1887.3,6.80537]
[1743166804401,11.29425547,1887.4,1887.0,6.80595]
[1743166804602,1.12942555,1887.3,1887.0,6.80595]
[1743166805091,6.42810555,1887.3,1886.9,18.94922136]
[1743166805292,5.99595547,1887.2,1887.0,5.29937]
[1743166806314,5.99595547,1887.2,1886.9,13.64955136]
[1743166806624,1.5593,1887.1,1886.9,13.64956136]
[1743166806799,1.5593,1887.1,1886.9,18.94911136]
[1743166807120,1.5593,1887.1,1886.9,13.64955136]
[1743166807422,5.99595547,1887.2,1886.9,18.94908136]
[1743166807630,5.99595547,1887.2,1886.9,10.98851]
[1743166807923,7.39848357,1887.2,1886.9,5.689]
[1743166808098,7.39848357,1887.2,1886.9,10.98863]
[1743166808702,7.39848357,1887.2,1886.9,5.689]
[1743166808901,7.39848357,1887.2,1886.7,4.19880136]
[1743166809095,5.99595547,1887.2,1887.0,5.29932]
[1743166809386,5.99595547,1887.2,1887.1,7.96013136]
[1743166809612,5.99595547,1887.2,1887.1,9.53683136]
[1743166809936,5.99595547,1887.2,1886.9,7.96069136]
[1743166810097,5.99595547,1887.2,1886.8,6.87656]
[1743166810293,2.24659555,1887.1,1886.9,5.29966]
[1743166810498,0.59959555,1887.1,1886.9,2.66100136]
[1743166811133,5.89890555,1887.1,1886.9,2.66100136]
[1743166811315,0.59959555,1887.1,1886.6,1.6537]
[1743166811514,5.89884555,1887.1,1886.7,7.96103136]
[1743166811810,0.58988456,1887.0,1886.7,7.96103136]
[1743166812128,18.25710547,1886.9,1886.5,7.96172136]
[1743166812425,12.95728547,1886.9,1886.5,7.96165136]
[1743166812724,5.30063,1886.6,1886.3,5.30134]
[1743166812886,8.03301847,1886.5,1886.1,1.6657]
[1743166813213,10.60256,1886.4,1886.1,0.05]
[1743166813807,5.99595547,1886.3,1886.1,0.05]
[1743166814007,11.29733547,1886.3,1886.1,0.05]
[1743166814218,5.30166,1886.2,1886.1,0.05]
[1743166814599,5.99595547,1886.3,1886.2,5.30166]
[1743166814805,5.99595547,1886.3,1886.2,7.96266136]
[1743166815004,5.99595547,1886.3,1886.2,8.66377736]
[1743166815204,5.99595547,1886.3,1886.2,14.34877736]
[1743166816839,5.99595547,1886.8,1886.6,5.3004]
[1743166817022,5.99595547,1886.8,1886.7,5.30025]
[1743166817395,5.99595547,1886.8,1886.6,7.96140136]
[1743166817793,13.45382102,1886.8,1886.7,0.15161776]
[1743166818140,13.45382102,1886.8,1886.4,5.30099]
[1743166818299,8.15385102,1886.8,1886.4,7.96197136]
[1743166818504,13.45385102,1886.8,1886.5,0.15325855]
[1743166818705,5.30037,1886.7,1886.5,0.15325855]
[1743166819037,0.530037,1886.6,1886.3,5.30134]
[1743166819456,13.45396102,1886.8,1886.4,5.30098]
[1743166819616,13.45396102,1886.8,1886.4,10.6019]
[1743166819819,18.75411102,1886.8,1886.4,5.30092]
[1743166820146,8.15385102,1886.8,1886.5,5.30071]
[1743166820601,5.99595547,1886.8,1886.7,5.30025]
[1743166821310,5.99595547,1886.8,1886.6,7.96137136]
[1743166821523,5.99595547,1886.8,1886.6,7.96151136]
[1743166821725,7.50485547,1886.7,1886.2,1.5175]
[1743166821957,7.50485547,1886.7,1886.5,5.30081]
[1743166822139,7.50485547,1886.7,1886.6,5.30054]
[1743166822140,5.99595547,1886.7,1886.6,5.30054]
[1743166822459,11.29629547,1886.7,1886.3,6.93654]
[1743166822795,5.99595547,1886.7,1886.4,5.30101]
[1743166823243,7.65557902,1886.7,1886.4,5.30101]
[1743166823434,7.65557902,1886.7,1886.5,0.15306163]
[1743166823635,5.99595547,1886.7,1886.6,5.30054]
[1743166823822,5.99595547,1886.7,1886.5,7.96166136]
[1743166824161,5.99595547,1886.7,1886.6,7.05570163]
[1743166825150,5.99595547,1886.7,1886.6,0.15306163]
[1743166825355,5.99595547,1886.7,1886.6,5.45360163]
[1743166826133,5.99595547,1886.7,1886.6,0.15306163]
[1743166826336,7.29146302,1886.7,1886.4,5.30094]
[1743166826535,5.99595547,1886.7,1886.6,0.15240529]
[1743166826776,5.99595547,1886.7,1886.5,5.30064]
[1743166827066,5.99595547,1886.7,1886.6,0.15240529]
[1743166828324,5.99595547,1886.7,1886.4,10.60189]
[1743166828526,5.99595547,1886.7,1886.6,0.15240529]
[1743166828863,5.99595547,1886.7,1886.5,7.96178136]
[1743166829164,5.99595547,1886.7,1886.6,0.15240529]
[1743166829360,6.76146102,1886.7,1886.6,0.15240529]
[1743166829565,6.76146102,1886.7,1886.4,10.60203]
[1743166829767,5.99595547,1886.7,1886.6,0.15240529]
[1743166830064,5.99595547,1886.7,1886.5,7.96174136]
[1743166830369,5.99595547,1886.7,1886.6,0.15181454]
[1743166830923,5.30097,1886.5,1886.1,33.37788]
[1743166831174,11.29692547,1886.5,1886.1,38.67969]
[1743166831520,11.29692547,1886.5,1886.2,7.96263136]
[1743166831719,11.29692547,1886.5,1886.2,2.66100136]
[1743166831970,5.30123,1886.4,1886.1,28.076]
[1743166832550,12.95655602,1886.5,1886.1,28.076]
[1743166832735,12.95655602,1886.5,1886.1,33.37769]
[1743166832948,18.25754602,1886.5,1886.1,33.37769]
[1743166833161,12.95655602,1886.5,1886.2,2.66100136]
[1743166833358,5.99595547,1886.5,1886.3,5.30122]
[1743166833574,5.99595547,1886.5,1886.4,2.66100136]
[1743166833730,5.99595547,1886.5,1886.3,1.5164]
[1743166834762,5.30159,1886.3,1886.1,0.05]
[1743166834938,11.82770447,1886.3,1886.1,0.05]
[1743166835143,5.30166,1886.2,1886.1,0.05]
[1743166836163,11.82770447,1886.3,1886.1,0.05]
[1743166836335,11.82768447,1886.3,1886.1,0.05]
[1743166836536,5.30166,1886.2,1886.1,0.05]
[1743166836866,7.01459445,1886.2,1886.1,0.05]
[1743166837238,1.71293445,1886.2,1886.1,0.05]
[1743166837573,7.01459445,1886.2,1886.1,0.05]
[1743166838536,14.59284992,1886.2,1886.1,0.2041777]
[1743166840064,15.14284992,1886.2,1886.1,0.2041777]
[1743166840381,14.59284992,1886.2,1886.1,0.2041777]
[1743166840577,5.99595547,1886.2,1886.1,0.05]
[1743166840780,5.99595547,1886.2,1886.1,0.2041777]
[1743166841246,5.99595547,1886.6,1886.4,5.30095]
[1743166841448,1.08642079,1887.0,1886.7,5.30007]
[1743166841750,3.0,1887.0,1886.7,7.96107136]
[1743166841949,3.63857008,1887.0,1886.8,5.45887538]
[1743166842176,5.99595547,1887.2,1886.8,0.15890538]
[1743166842344,5.99595547,1887.2,1886.9,9.62117136]
[1743166842534,11.29490547,1887.2,1886.9,10.00070136]
[1743166842733,11.29490547,1887.2,1887.0,0.15890538]
[1743166842734,5.29917,1887.1,1887.0,0.15890538]
[1743166843350,5.29917,1887.1,1886.7,15.19792136]
[1743166843551,6.42868255,1887.1,1887.0,0.15890538]
[1743166843746,6.42868255,1887.1,1886.7,15.19792136]
[1743166843971,6.42868255,1887.1,1887.0,0.15890538]
[1743166844139,6.42868255,1887.1,1886.7,20.49789136]
[1743166844340,5.29917,1887.1,1887.0,0.15890538]
[1743166844541,5.29917,1887.1,1886.8,5.29987]
[1743166844780,5.99595547,1887.2,1887.0,5.45827538]
[1743166844981,5.99595547,1887.2,1886.9,7.96066136]
[1743166845143,5.99595547,1887.2,1887.1,0.15890538]
[1743166845342,5.99595547,1887.2,1886.9,7.96066136]
[1743166845543,5.99595547,1887.2,1887.1,0.15890538]
[1743166845867,12.42437102,1887.2,1886.9,2.66100136]
[1743166846044,12.42437102,1887.2,1887.1,0.14794249]
[1743166846942,12.42437102,1887.2,1886.8,10.59957]
[1743166847144,12.42437102,1887.2,1887.1,0.14794249]
[1743166847481,12.42437102,1887.2,1886.8,5.29976]
[1743166847662,11.29491547,1887.2,1886.8,5.29976]
[1743166848046,5.99595547,1887.2,1886.9,5.44750249]
[1743166848562,11.29483547,1887.2,1886.9,5.44750249]
[1743166848870,11.29483547,1887.2,1886.9,0.14794249]
[1743166849090,5.29917,1887.1,1886.9,0.14794249]
[1743166849293,6.89401,1887.0,1886.7,0.38864663]
[1743166849496,5.30014,1886.8,1886.4,5.30099]
[1743166849882,10.60029,1886.8,1886.4,7.96199136]
[1743166850083,5.30014,1886.8,1886.4,7.96199136]
[1743166850475,5.30014,1886.8,1886.5,5.30081]
[1743166850677,5.30014,1886.8,1886.4,7.96199136]
[1743166850864,5.29974,1886.9,1886.5,5.30055]
[1743166851059,5.99595547,1887.0,1886.7,5.30012]
[1743166851612,5.99595547,1887.0,1886.8,5.29996]
[1743166851792,5.99595547,1887.0,1886.7,5.30012]
[1743166851991,11.29540547,1887.0,1886.6,9.44580136]
[1743166852210,5.29971,1886.9,1886.6,9.44580136]
[1743166852515,11.29540547,1887.0,1886.7,5.30023]
[1743166852832,13.25486302,1887.0,1886.6,9.44560136]
[1743166853110,5.2998,1886.9,1886.5,10.60129]
[1743166853316,13.25485302,1887.0,1886.5,5.30056]
[1743166853480,18.55443302,1887.0,1886.6,5.44917993]
[1743166853808,5.2997,1886.9,1886.6,0.14872993]
[1743166854015,5.30008,1886.8,1886.6,0.14872993]
[1743166854609,8.1199113,1886.9,1886.6,0.14872993]
[1743166854912,8.1199113,1886.9,1886.6,5.44921993]
[1743166855215,13.4197713,1886.9,1886.6,0.14872993]
[1743166855922,8.1199113,1886.9,1886.6,0.14872993]
[1743166856523,6.6252113,1886.9,1886.6,5.44913993]
[1743166857615,5.29999,1886.8,1886.6,0.14872993]
[1743166857803,6.6252113,1886.9,1886.6,0.14872993]
[1743166858004,11.9251113,1886.9,1886.6,0.14872993]
[1743166858313,5.30025,1886.7,1886.6,0.14872993]
[1743166858516,10.60071,1886.7,1886.3,10.97436]
[1743166858718,16.59666547,1886.7,1886.4,0.15148628]
[1743166858918,5.30055,1886.6,1886.3,10.97425]
[1743166859146,5.30055,1886.6,1886.4,0.15148628]
[1743166859429,5.30055,1886.6,1886.3,10.97425]
[1743166859629,5.30055,1886.6,1886.5,0.15148628]
[1743166859800,5.30055,1886.6,1886.3,5.673]
[1743166860000,5.30055,1886.6,1886.5,0.15148628]
[1743166860202,5.30055,1886.6,1886.3,10.9743]
[1743166860398,5.30128,1886.4,1886.1,0.45648474]
[1743166860635,5.30138,1886.3,1886.1,0.45648474]
[1743166861210,10.60249,1886.4,1886.1,0.45648474]
[1743166861520,5.30148,1886.3,1886.1,0.05]
[1743166861923,6.80701,1886.4,1886.1,5.35188]
[1743166862124,5.99595547,1886.6,1886.4,6.81225]
[1743166862338,5.99595547,1887.1,1886.6,5.30041]
[1743166862620,5.29979,1886.9,1886.6,5.30041]
[1743166862790,3.0,1887.0,1886.5,5.673]
[1743166862993,5.30066,1886.6,1886.3,5.672]
[1743166863333,5.30066,1886.6,1886.3,10.97337]
[1743166863692,5.30029,1886.7,1886.3,13.63421136]
[1743166863893,11.29597547,1886.8,1886.4,5.30095]
[1743166864218,12.88055302,1886.8,1886.5,7.96169136]
[1743166864722,7.58057302,1886.8,1886.5,7.96171136]
[1743166865032,7.58057302,1886.8,1886.5,7.96166136]
[1743166865323,7.58057302,1886.8,1886.5,14.72396136]
[1743166865524,5.99595547,1886.8,1886.6,5.30048]
[1743166865723,5.99595547,1886.8,1886.7,5.30025]
[1743166865932,5.99595547,1887.0,1886.8,5.29995]
[1743166866619,5.99595547,1887.0,1886.8,10.59971]
[1743166866935,5.99595547,1887.2,1887.0,5.29933]
[1743166867119,5.99595547,1887.2,1887.0,2.66100136]
[1743166867620,5.99595547,1887.2,1886.9,9.89181971]
[1743166867995,5.99595547,1887.2,1886.9,7.23081835]
[1743166868330,5.2994,1887.1,1886.8,5.29997]
[1743166868630,7.65529902,1887.2,1886.9,5.44919318]
[1743166868811,7.65529902,1887.2,1887.0,7.96038136]
[1743166868812,5.99595547,1887.2,1887.0,7.96038136]
[1743166869211,5.99595547,1887.2,1887.1,0.15010811]
[1743166870033,5.99595547,1887.2,1887.1,9.57463947]
[1743166870531,5.99595547,1887.2,1887.1,1.61450811]
[1743166870698,12.42426302,1887.2,1887.1,0.15010811]
[1743166870899,17.72335302,1887.2,1886.9,1.90823915]
[1743166871099,12.42426302,1887.2,1887.0,0.15010811]
[1743166871731,17.72330302,1887.2,1887.0,0.15010811]
[1743166872033,12.42426302,1887.2,1887.0,0.15010811]
[1743166872333,1.2424263,1887.1,1887.0,0.15010811]
[1743166872501,5.99595547,1887.2,1887.0,0.15010811]
[1743166874134,11.29480547,1887.2,1887.0,0.15010811]
[1743166874539,5.99595547,1887.2,1886.9,10.59923]
[1743166874739,5.99595547,1887.2,1887.0,0.14800816]
[1743166875137,11.29482547,1887.2,1887.0,0.14800816]
[1743166875445,12.95416502,1887.2,1887.0,0.14800816]
[1743166875645,7.65529502,1887.2,1887.0,5.44733816]
[1743166875850,5.99595547,1887.2,1887.0,5.44733816]
[1743166876023,5.99595547,1887.2,1887.0,0.14800816]
[1743166876606,5.29913,1887.1,1887.0,0.14800816]
[1743166876812,11.29481547,1887.2,1886.8,13.66544506]
[1743166877141,11.29481547,1887.2,1886.9,5.44762254]
[1743166877864,5.99595547,1887.2,1886.9,10.74719254]
[1743166878043,5.99595547,1887.2,1887.0,9.47363136]
[1743166878214,5.99595547,1887.2,1887.1,5.29913]
[1743166878419,5.99595547,1887.2,1887.0,9.47363136]
[1743166878641,5.99595547,1887.2,1887.1,0.14794254]
[1743166878831,7.65528602,1887.2,1887.1,0.14794254]
[1743166879130,14.47108602,1887.2,1886.9,5.29967]
[1743166879447,14.47108602,1887.2,1887.0,0.14794254]
[1743166880813,12.95428602,1887.2,1887.0,0.14794254]
[1743166881121,7.65528602,1887.2,1887.0,0.14794254]
[1743166881322,12.95415602,1887.2,1887.0,0.14794254]
[1743166881646,1.2954156,1887.1,1887.0,0.14794254]
[1743166881952,1.2954156,1887.1,1886.7,10.60024]
[1743166881953,11.8938256,1887.1,1886.7,10.60024]
[1743166882246,12.95415602,1887.2,1886.8,5.44758131]
[1743166882415,12.95415602,1887.2,1886.9,5.29959]
[1743166882621,5.99595547,1887.2,1887.0,5.29941]
[1743166882821,5.99595547,1887.2,1887.1,0.14781131]
[1743166883021,5.29923,1887.1,1886.8,5.29983]
[1743166883231,5.29923,1887.1,1886.9,0.14781131]
[1743166883620,5.29923,1887.1,1886.8,10.59966]
[1743166883821,5.29923,1887.1,1886.9,0.14781131]
[1743166884033,6.95863355,1887.1,1886.8,5.29983]
[1743166884228,6.95863355,1887.1,1887.0,0.14781131]
[1743166884433,5.2995,1887.0,1886.7,5.30024]
[1743166884644,5.2995,1887.0,1886.7,5.30013]
[1743166885848,11.29490547,1887.2,1886.8,2.66100136]
[1743166886052,5.99595547,1887.2,1887.0,6.82491]
[1743166886638,5.99595547,1887.2,1887.0,6.82488]
[1743166886839,5.99595547,1887.2,1887.1,5.29913]
[1743166887423,3.0,1887.5,1887.2,5.29868]
[1743166887624,5.99595547,1887.6,1887.4,7.95921136]
[1743166887929,5.99595547,1887.8,1887.7,6.73905]
[1743166888128,5.99595547,1887.8,1887.7,9.40005136]
[1743166890026,5.99595547,1887.8,1887.7,9.80593426]
[1743166891466,5.99595547,1888.2,1887.9,5.29669]
[1743166891960,5.99595547,1888.2,1887.9,10.59338]
[1743166892250,5.99595547,1888.2,1888.0,5.29658]
[1743166892645,5.99595547,1888.2,1887.9,5.29669]
[1743166893042,6.7705,1888.3,1888.0,5.29658]
[1743166893345,1.4747,1888.3,1888.1,5.29617]
[1743166893652,5.2953,1888.5,1888.1,5.29617]
[1743166893653,1.4171,1888.5,1888.2,5.296]
[1743166893953,3.0,1888.5,1888.2,5.29593]
[1743166894451,14.949717,1888.5,1888.1,9.41050136]
[1743166894832,5.29548,1888.4,1888.1,9.41050136]
[1743166895035,9.654357,1888.5,1888.1,14.70656136]
[1743166895234,4.359007,1888.5,1888.2,5.29596]
[1743166895433,5.29496,1888.6,1888.2,5.29596]
[1743166895630,5.29496,1888.6,1888.3,5.29572]
[1743166895841,5.29493,1888.6,1888.3,5.29572]
[1743166896725,8.29495,1888.6,1888.1,4.11420136]
[1743166896947,8.29495,1888.6,1888.3,5.29576]
[1743166897343,8.29495,1888.6,1888.2,10.59174]
[1743166897655,8.29495,1888.6,1888.2,5.29583]
[1743166897826,3.0,1888.6,1888.3,5.29562]
[1743166898027,3.0,1888.6,1888.2,2.66100136]
[1743166898233,3.0,1888.6,1888.4,5.29534]
[1743166898548,8.29492,1888.6,1888.5,0.13023897]
[1743166898755,13.59006,1888.6,1888.2,5.70051293]
[1743166898935,13.59006,1888.6,1888.3,0.13023897]
[1743166899636,3.0,1888.6,1888.3,10.72148897]
[1743166899855,3.0,1888.6,1888.3,5.42577897]
[1743166900046,3.0,1888.6,1888.4,5.29547]
[1743166900432,3.0,1888.6,1888.5,0.1296493]
[1743166901144,11.29033547,1888.8,1888.5,0.1296493]
[1743166901345,11.29033547,1888.8,1888.5,5.4248193]
[1743166901761,11.29033547,1888.8,1888.5,5.4247693]
[1743166902141,5.99595547,1888.8,1888.5,10.7198193]
[1743166902341,5.99595547,1888.8,1888.5,5.4246993]
[1743166902547,5.99595547,1888.8,1888.5,8.08584066]
[1743166902946,11.29035547,1888.8,1888.5,5.4248393]
[1743166903146,5.99595547,1888.8,1888.5,10.7199393]
[1743166903353,5.99595547,1888.8,1888.5,5.4247493]
[1743166903667,5.99595547,1888.8,1888.5,0.1296493]
[1743166903668,9.92567238,1888.8,1888.5,0.1296493]
[1743166903839,5.29492,1888.6,1888.5,0.1296493]
[1743166904190,5.29521,1888.5,1888.2,0.40448293]
[1743166904386,5.29558,1888.4,1888.0,9.45727136]
[1743166904529,2.66100136,1888.3,1887.8,1.4997]
[1743166904736,1.4035,1888.1,1887.7,0.4058829]
[1743166904972,11.99637,1888.1,1887.7,5.29734]
[1743166905136,5.29672,1888.0,1887.7,5.29734]
[1743166905470,5.29661,1888.0,1887.5,9.45869136]
[1743166905671,5.29661,1888.0,1887.6,5.29767]
[1743166905672,5.29703,1887.9,1887.6,5.29767]
[1743166906172,1.4035,1888.1,1887.7,7.95842136]
[1743166906173,6.69997,1888.1,1887.7,7.95842136]
[1743166906372,11.9965,1888.1,1887.7,7.95842136]
[1743166906541,5.29663,1888.0,1887.7,2.66100136]
[1743166906746,5.29663,1888.0,1887.6,13.25630136]
[1743166906947,5.29663,1888.0,1887.7,5.29742]
[1743166907359,5.29663,1888.0,1887.6,14.7317115]
[1743166907677,1.4035,1888.1,1887.6,4.1366015]
[1743166907879,6.69983,1888.1,1887.7,13.25552136]
[1743166908083,5.29633,1888.1,1887.8,7.95809136]
[1743166908294,11.55829561,1888.2,1887.8,7.95809136]
[1743166908611,5.99595547,1888.2,1887.9,7.95769136]
[1743166910581,5.99595547,1888.2,1887.9,13.25442136]
[1743166911366,5.99595547,1888.2,1887.9,13.25447136]
[1743166911857,5.99595547,1888.2,1888.0,5.29652]
[1743166912459,5.99595547,1888.2,1887.9,7.95769136]
[1743166913099,5.99595547,1888.2,1887.9,13.25443136]
[1743166913580,5.99595547,1888.2,1888.1,5.29632]
[1743166913787,5.99595547,1888.2,1888.1,0.10733042]
[1743166914677,5.99595547,1888.2,1887.9,15.0830645]
[1743166914881,5.99595547,1888.2,1888.1,0.10733042]
[1743166915395,5.99595547,1888.2,1888.1,5.40365042]
[1743166916225,5.99595547,1888.2,1888.1,0.10733042]
[1743166916393,12.66559547,1888.2,1888.1,0.10733042]
[1743166916572,7.36955547,1888.2,1887.9,18.90955136]
[1743166916777,12.66562547,1888.2,1888.1,0.10733042]
[1743166917010,12.66562547,1888.2,1887.9,13.61272136]
[1743166917301,12.66562547,1888.2,1888.1,0.10733042]
[1743166917513,12.66562547,1888.2,1887.9,13.61272136]
[1743166917714,12.66562547,1888.2,1888.1,0.10733042]
[1743166918196,12.66562547,1888.2,1887.9,13.61272136]
[1743166918394,12.66562547,1888.2,1888.1,0.10733042]
[1743166918598,12.66562547,1888.2,1887.9,13.61272136]
[1743166918796,12.66562547,1888.2,1888.1,0.10733042]
[1743166918989,5.29702,1887.9,1887.6,1.75322425]
[1743166919334,1.402,1887.9,1887.2,1.3456]
[1743166919552,5.29872,1887.3,1887.0,1.4252]
[1743166919696,5.29898,1887.2,1886.9,5.653]
[1743166919901,5.29898,1887.2,1886.9,9.28500014]
[1743166920652,5.29948,1887.0,1886.7,1.4252]
[1743166920832,5.29914,1887.1,1886.7,6.72527]
[1743166921339,1.3706,1887.2,1886.6,13.61451136]
[1743166921645,5.29979,1886.9,1886.6,2.66100136]
[1743166921811,5.29979,1886.9,1886.4,5.30106]
[1743166921812,5.30043,1886.7,1886.3,40.31198]
[1743166922139,5.30077,1886.6,1886.3,28.006]
[1743166922547,5.30082,1886.5,1886.3,28.006]
[1743166922700,12.33992136,1886.8,1886.3,28.006]
[1743166922894,5.30093,1886.5,1886.3,28.006]
[1743166923097,5.30056,1886.6,1886.3,28.006]
[1743166923338,5.30084,1886.5,1886.3,28.006]
[1743166923811,5.30166,1886.2,1886.1,0.05]
[1743166924014,5.30148,1886.3,1886.1,0.05]
[1743166924522,5.30166,1886.2,1886.1,0.05]
[1743166925137,12.35792947,1886.2,1886.1,0.05]
[1743166925340,15.01893083,1886.2,1886.1,0.05]
[1743166926235,18.01893083,1886.2,1886.1,0.05]
[1743166926430,20.01103083,1886.2,1886.1,0.05]
[1743166926905,20.01103083,1886.2,1886.1,1e-05]
[1743166926906,20.00836296,1886.2,1886.1,1e-05]
[1743166928172,16.80002947,1886.2,1886.1,1e-05]
[1743166928525,5.99595547,1886.2,1886.1,0.10421794]
[1743166928729,1.3899,1886.4,1886.1,0.10421794]
[1743166928939,5.99595547,1886.6,1886.2,5.30145]
[1743166929146,5.99595547,1886.6,1886.3,5.3012]
[1743166929358,11.29567547,1886.9,1886.5,5.30066]
[1743166929528,5.99595547,1886.9,1886.6,5.42340011]
[1743166929833,5.99595547,1886.9,1886.6,0.12308011]
[1743166929834,17.19521102,1886.9,1886.6,0.12308011]
[1743166930031,11.89532102,1886.9,1886.5,5.30073]
[1743166930256,17.19527102,1886.9,1886.6,0.12124353]
[1743166930462,5.30016,1886.8,1886.4,6.76447]
[1743166930669,5.30039,1886.7,1886.5,0.12124353]
[1743166930875,6.360445,1886.7,1886.3,5.30123]
[1743166931048,6.360445,1886.7,1886.6,0.12124353]
[1743166931254,6.360445,1886.7,1886.3,5.30123]
[1743166931453,1.060055,1886.7,1886.4,0.12124353]
[1743166931649,11.29565547,1886.9,1886.5,5.30063]
[1743166931863,5.99595547,1886.9,1886.7,5.30016]
[1743166932064,5.99595547,1887.3,1887.1,5.29893]
[1743166932245,5.99595547,1887.6,1887.3,5.29851]
[1743166932448,13.95202896,1887.6,1886.8,5.29987]
[1743166932673,5.29954,1887.0,1886.9,0.11357285]
[1743166932879,5.29988,1886.9,1886.5,12.30804]
[1743166933194,5.29976,1886.9,1886.5,7.0075]
[1743166933355,5.30003,1886.8,1886.5,7.0075]
[1743166933557,5.30003,1886.8,1886.4,5.30087]
[1743166933558,6.360009,1886.8,1886.4,5.30087]
[1743166933761,5.3006,1886.6,1886.3,7.1161]
[1743166934291,5.3003,1886.7,1886.3,5.653]
[1743166934645,5.30067,1886.6,1886.3,5.653]
[1743166934842,5.830917,1886.5,1886.3,5.653]
[1743166935060,5.830917,1886.5,1886.1,5.30175]
[1743166935465,11.131987,1886.5,1886.1,5.30174]
[1743166935753,5.30116,1886.4,1886.1,1e-05]
[1743166935990,5.30151,1886.3,1886.1,1e-05]
[1743166936165,0.530151,1886.2,1886.1,1e-05]
[1743166936458,5.99595547,1886.7,1886.1,5.30193]
[1743166936655,11.94032,1887.2,1886.8,5.29982]
[1743166937049,6.64135,1887.2,1886.8,5.29982]
[1743166937265,11.29464547,1887.3,1886.9,10.59924]
[1743166937455,6.42833455,1887.2,1886.8,5.29978]
[1743166937657,5.99595547,1887.3,1887.1,5.29913]
[1743166937966,5.99595547,1887.6,1887.2,5.29885]
[1743166938144,5.99595547,1887.6,1887.3,10.59698]
[1743166938349,11.29385547,1887.6,1887.2,5.29883]
[1743166938549,11.29385547,1887.6,1887.3,5.29838]
[1743166938550,1.12938555,1887.5,1887.3,5.29838]
[1743166938753,1.12938555,1887.5,1887.4,5.29829]
[1743166938965,5.99595547,1887.6,1887.5,5.29801]
[1743166939153,5.99595547,1887.6,1887.3,5.29856]